fUSD/lending_fUSD_20241227
["ID","MTS","AMOUNT","RATE_DAILY","PERIOD"]
[346814068,1735303847282,-500.0,0.0001088,2]
[346814069,1735303847291,-500.0,0.0001088,2]
[346814070,1735303847301,-2988.7,0.0001088,2]
[346814071,1735303847310,-500.0,0.0001088,2]
[346814072,1735303847319,-500.0,0.0001088,2]
[346814073,1735303847328,-2940.0,0.0001088,2]
[346814074,1735303847338,-500.0,0.0001088,2]
[346814075,1735303847347,-500.0,0.0001088,2]
[346814076,1735303847356,-3585.71,0.0001088,2]
[346814077,1735303847365,-500.0,0.0001088,2]
[346814078,1735303847375,-27220.93,0.0001088,2]
[346814079,1735303847384,-500.0,0.0001088,2]
[346814080,1735303847393,-1359.26,0.0001088,2]
[346814081,1735303847403,-500.0,0.0001088,2]
[346814082,1735303847412,-500.0,0.0001088,2]
[346814083,1735303847422,-4229.18,0.0001088,2]
[346814084,1735303847431,-871.53,0.0001088,2]
[346814085,1735303847441,-500.0,0.0001088,2]
[346814086,1735303847450,-1074.66,0.0001088,2]
[346814087,1735303847459,-1804.77,0.0001088,2]
[346814088,1735303847469,-590.1420653,0.0001088,2]
[346814089,1735303847478,-1609.85,0.0001088,2]
[346814090,1735303847487,-1519.48,0.0001088,2]
[346814091,1735303847498,-744.38,0.0001088,2]
[346814092,1735303847507,-500.0,0.0001088,2]
[346814093,1735303847516,-576.66,0.0001088,2]
[346814094,1735303847526,-500.0,0.0001088,2]
[346814095,1735303847535,-500.0,0.0001088,2]
[346814096,1735303847544,-1122.8,0.0001088,2]
[346814097,1735303847553,-500.0,0.0001088,2]
[346814098,1735303847562,-500.0,0.0001088,2]
[346814099,1735303847572,-654.41,0.0001088,2]
[346814100,1735303847581,-500.0,0.0001088,2]
[346814101,1735303847590,-500.0,0.0001088,2]
[346814102,1735303847600,-500.0,0.0001088,2]
[346814103,1735303847609,-1914.0,0.0001088,2]
[346814104,1735303847619,-3347.73,0.0001088,2]
[346814105,1735303847628,-500.0,0.0001088,2]
[346814106,1735303847638,-500.0,0.0001088,2]
[346814107,1735303847647,-500.0,0.0001088,2]
[346814108,1735303847656,-1508.43,0.0001088,2]
[346814109,1735303847666,-500.0,0.0001088,2]
[346814110,1735303847675,-500.0,0.0001088,2]
[346814111,1735303847685,-500.0,0.0001088,2]
[346814112,1735303847694,-3671.61,0.0001088,2]
[346814113,1735303847703,-2874.89,0.0001088,2]
[346814114,1735303847713,-2028.12,0.0001088,2]
[346814115,1735303847722,-500.0,0.0001088,2]
[346814116,1735303847731,-500.0,0.0001088,2]
[346814117,1735303847740,-500.0,0.0001088,2]
[346814118,1735303847751,-25795.41,0.0001088,2]
[346814119,1735303847760,-3942.12,0.0001088,2]
[346814120,1735303847769,-500.0,0.0001088,2]
[346814121,1735303847778,-500.0,0.0001088,2]
[346814122,1735303847787,-8360.95,0.0001088,2]
[346814123,1735303847796,-500.0,0.0001088,2]
[346814124,1735303847805,-500.0,0.0001088,2]
[346814125,1735303847814,-3547.18,0.0001088,2]
[346814126,1735303847824,-505.27518466,0.0001088,2]
[346814127,1735303847833,-500.0,0.0001088,2]
[346814128,1735303847842,-500.0,0.0001088,2]
[346814129,1735303847851,-1692.08,0.0001088,2]
[346814130,1735303847860,-549.1,0.0001088,2]
[346814131,1735303847869,-500.0,0.0001088,2]
[346814132,1735303847878,-15792.61,0.0001088,2]
[346814133,1735303847887,-979.9,0.0001088,2]
[346814134,1735303847897,-500.0,0.0001088,2]
[346814135,1735303847906,-1379.08,0.0001088,2]
[346814136,1735303847915,-5221.81,0.0001088,2]
[346814137,1735303847924,-1843.08,0.0001088,2]
[346814138,1735303847933,-500.0,0.0001088,2]
[346814139,1735303847942,-1232.41,0.0001088,2]
[346814140,1735303847951,-1617.85,0.0001088,2]
[346814141,1735303847960,-500.0,0.00010881,2]
[346814142,1735303847970,-500.0,0.00010881,2]
[346814143,1735303847979,-500.0,0.00010881,2]
[346814144,1735303847988,-500.0,0.00010881,2]
[346814145,1735303847999,-500.0,0.00010881,2]
[346814146,1735303848008,-500.0,0.00010881,2]
[346814147,1735303848017,-501.38946582,0.00010881,2]
[346814148,1735303848027,-500.69148134,0.00010881,2]
[346814149,1735303848036,-502.37656309,0.00010881,2]
[346814150,1735303848045,-307.12573288,0.00010881,2]
[346814151,1735303848055,-501.18052356,0.00010881,2]
[346814152,1735303848064,-500.0,0.00010881,2]
[346814153,1735303848074,-500.0,0.00010881,2]
[346814154,1735303848083,-501.87231997,0.00010881,2]
[346814155,1735303848093,-500.0,0.00010881,2]
[346814156,1735303848103,-500.0,0.00010881,2]
[346814157,1735303848112,-500.0,0.00010881,2]
[346814158,1735303848121,-300.0,0.00010881,2]
[346814159,1735303848132,-500.81499539,0.00010881,2]
[346814160,1735303848143,-519.76728113,0.00010881,2]
[346814161,1735303848152,-500.0,0.00010881,2]
[346814162,1735303848162,-500.0,0.00010881,2]
[346814163,1735303848171,-500.0,0.00010881,2]
[346814164,1735303848180,-504.02174388,0.00010881,2]
[346814165,1735303848189,-500.0,0.00010881,2]
[346814166,1735303848199,-500.0,0.00010881,2]
[346814167,1735303848209,-334.85673616,0.00010881,2]
[346814168,1735303848218,-500.0,0.00010881,2]
[346814169,1735303848230,-500.0,0.00010881,2]
[346814170,1735303848239,-500.0,0.00010881,2]
[346814171,1735303848250,-500.0,0.00010881,2]
[346814172,1735303848259,-500.0,0.00010881,2]
[346814173,1735303848268,-500.0,0.00010881,2]
[346814174,1735303848278,-500.0,0.00010881,2]
[346814175,1735303848287,-502.40132212,0.00010881,2]
[346814176,1735303848296,-500.0,0.00010881,2]
[346814177,1735303848306,-500.0,0.00010881,2]
[346814178,1735303848315,-500.0,0.00010881,2]
[346814179,1735303848324,-500.0,0.00010881,2]
[346814180,1735303848334,-500.0,0.00010881,2]
[346814181,1735303848343,-2061.11,0.00010881,2]
[346814182,1735303848352,-632.92,0.00010881,2]
[346814183,1735303848362,-1652.86,0.00010881,2]
[346814184,1735303848371,-500.0,0.00010881,2]
[346814185,1735303848381,-1912.15,0.00010881,2]
[346814186,1735303848390,-500.0,0.00010881,2]
[346814187,1735303848400,-2512.54,0.00010881,2]
[346814188,1735303848410,-1975.25,0.00010881,2]
[346814189,1735303848419,-1712.35,0.00010881,2]
[346814190,1735303848429,-528.68092393,0.00010881,2]
[346814191,1735303848439,-500.0,0.00010881,2]
[346814192,1735303848449,-559.54,0.00010881,2]
[346814193,1735303848458,-2580.45,0.00010881,2]
[346814194,1735303848467,-1782.14,0.00010881,2]
[346814195,1735303848476,-500.0,0.00010881,2]
[346814196,1735303848486,-2105.65,0.00010881,2]
[346814197,1735303848496,-1993.64,0.00010881,2]
[346814198,1735303848505,-500.0,0.00010881,2]
[346814199,1735303848515,-2638.38,0.00010881,2]
[346814200,1735303848525,-1413.09,0.00010881,2]
[346814201,1735303848535,-2844.17,0.00010881,2]
[346814202,1735303848544,-1521.09,0.00010881,2]
[346814203,1735303848553,-500.0,0.00010881,2]
[346814204,1735303848562,-2016.2,0.00010881,2]
[346814205,1735303848572,-3331.32,0.00010881,2]
[346814206,1735303848581,-500.0,0.00010881,2]
[346814207,1735303848590,-1820.84,0.00010881,2]
[346814208,1735303848600,-1326.09,0.00010881,2]
[346814209,1735303848609,-500.0,0.00010881,2]
[346814210,1735303848618,-1402.21,0.00010881,2]
[346814211,1735303848628,-500.0,0.00010881,2]
[346814212,1735303848637,-3720.25,0.00010881,2]
[346814213,1735303848646,-2017.62,0.00010881,2]
[346814214,1735303848656,-3597.7,0.00010881,2]
[346814215,1735303848665,-1270.62,0.00010881,2]
[346814216,1735303848674,-2320.15,0.00010881,2]
[346814217,1735303848683,-1469.06,0.00010881,2]
[346814218,1735303848693,-3195.83,0.00010881,2]
[346814219,1735303848702,-1835.08,0.00010881,2]
[346814220,1735303848711,-906.06,0.00010881,2]
[346814221,1735303848720,-500.0,0.00010881,2]
[346814222,1735303848729,-2514.77,0.00010881,2]
[346814223,1735303848738,-611.09,0.00010881,2]
[346814224,1735303848747,-1072.65,0.00010881,2]
[346814225,1735303848756,-1522.95,0.00010881,2]
[346814226,1735303848765,-500.0,0.00010881,2]
[346814227,1735303848774,-1697.39,0.00010882,2]
[346814228,1735303848784,-500.0,0.00010882,2]
[346814229,1735303848793,-458.64991742,0.00010882,2]
[346814230,1735303848802,-500.0,0.00010882,2]
[346814231,1735303848812,-865.14,0.00010882,2]
[346814232,1735303848821,-618.45,0.00010882,2]
[346814233,1735303848830,-578.57,0.00010882,2]
[346814234,1735303848841,-1148.81,0.00010882,2]
[346814235,1735303848850,-735.2,0.00010882,2]
[346814236,1735303848860,-500.0,0.00010882,2]
[346814237,1735303848869,-500.0,0.00010882,2]
[346814238,1735303848879,-773.21,0.00010882,2]
[346814239,1735303848888,-500.0,0.00010882,2]
[346814240,1735303848898,-500.0,0.00010882,2]
[346814241,1735303848908,-500.0,0.00010882,2]
[346814242,1735303848917,-912.16,0.00010882,2]
[346814243,1735303848927,-1017.72,0.00010882,2]
[346814244,1735303848937,-500.0,0.00010882,2]
[346814245,1735303848946,-813.07,0.00010882,2]
[346814246,1735303848955,-500.0,0.00010882,2]
[346814247,1735303848964,-500.0,0.00010882,2]
[346814248,1735303848974,-1721.12,0.00010882,2]
[346814249,1735303848984,-508.42659774,0.00010882,2]
[346814250,1735303848994,-500.0,0.00010882,2]
[346814251,1735303849003,-829.13,0.00010882,2]
[346814252,1735303849012,-500.0,0.00010882,2]
[346814253,1735303849022,-909.5,0.00010882,2]
[346814254,1735303849031,-500.0,0.00010882,2]
[346814255,1735303849041,-1303.81,0.00010882,2]
[346814256,1735303849051,-1187.98,0.00010882,2]
[346814257,1735303849060,-500.0,0.00010882,2]
[346814258,1735303849070,-1211.03,0.00010882,2]
[346814259,1735303849079,-500.0,0.00010882,2]
[346814260,1735303849089,-800.16,0.00010882,2]
[346814261,1735303849098,-500.0,0.00010882,2]
[346814262,1735303849107,-1551.86,0.00010882,2]
[346814263,1735303849117,-901.41,0.00010882,2]
[346814264,1735303849127,-500.0,0.00010882,2]
[346814265,1735303849141,-801.99,0.00010882,2]
[346814266,1735303849151,-500.0,0.00010882,2]
[346814267,1735303849161,-500.0,0.00010882,2]
[346814268,1735303849171,-500.0,0.00010882,2]
[346814269,1735303849180,-547.86,0.00010882,2]
[346814270,1735303849190,-1401.87,0.00010882,2]
[346814271,1735303849199,-1336.68,0.00010882,2]
[346814272,1735303849209,-500.0,0.00010882,2]
[346814273,1735303849219,-500.0,0.00010882,2]
[346814274,1735303849229,-500.0,0.00010882,2]
[346814275,1735303849238,-511.38891889,0.00010882,2]
[346814276,1735303849248,-500.0,0.00010882,2]
[346814277,1735303849257,-1035.53,0.00010882,2]
[346814278,1735303849267,-500.0,0.00010882,2]
[346814279,1735303849276,-500.0,0.00010882,2]
[346814280,1735303849286,-643.43,0.00010882,2]
[346814281,1735303849295,-6903.11,0.00010882,2]
[346814282,1735303849305,-500.0,0.00010882,2]
[346814283,1735303849314,-541.8,0.00010882,2]
[346814284,1735303849325,-3886.21,0.00010882,2]
[346814285,1735303849335,-500.0,0.00010882,2]
[346814286,1735303849346,-617.61,0.00010882,2]
[346814287,1735303849356,-1316.47,0.00010882,2]
[346814288,1735303849366,-2574.51,0.00010882,2]
[346814289,1735303849376,-500.0,0.00010882,2]
[346814290,1735303849386,-1062.77,0.00010882,2]
[346814291,1735303849395,-576.84,0.00010882,2]
[346814292,1735303849406,-500.0,0.00010882,2]
[346814293,1735303849415,-1195.63,0.00010882,2]
[346814294,1735303849425,-5672.87,0.00010882,2]
[346814295,1735303849435,-1193.17,0.00010882,2]
[346814296,1735303849444,-500.0,0.00010882,2]
[346814297,1735303849454,-502.31484909,0.00010882,2]
[346814298,1735303849464,-43229.16,0.00010882,2]
[346814299,1735303849474,-1195.22,0.00010882,2]
[346814300,1735303849483,-500.0,0.00010882,2]
[346814301,1735303849493,-5217.76,0.00010882,2]
[346814302,1735303849502,-1059.85,0.00010882,2]
[346814303,1735303849511,-1531.86,0.00010882,2]
[346814304,1735303849521,-869.53,0.00010882,2]
[346814305,1735303849530,-430.42247546,0.00010882,2]
[346814306,1735303849540,-1452.33,0.00010882,2]
[346814307,1735303849550,-4071.07,0.00010882,2]
[346814308,1735303849560,-500.0,0.00010882,2]
[346814309,1735303849570,-500.0,0.00010882,2]
[346814310,1735303849579,-500.0,0.00010882,2]
[346814311,1735303849588,-936.7,0.00010882,2]
[346814312,1735303849598,-500.0,0.00010882,2]
[346814313,1735303849607,-721.29,0.00010882,2]
[346814314,1735303849616,-1356.6,0.00010882,2]
[346814315,1735303849627,-2955.54,0.00010882,2]
[346814316,1735303849637,-500.0,0.00010882,2]
[346814317,1735303849647,-500.0,0.00010882,2]
[346814318,1735303849656,-1182.5,0.00010882,2]
[346814319,1735303849665,-500.0,0.00010882,2]
[346814320,1735303849675,-614.98,0.00010882,2]
[346814321,1735303849685,-500.0,0.00010882,2]
[346814322,1735303849695,-1081.42,0.00010882,2]
[346814323,1735303849705,-500.0,0.00010882,2]
[346814324,1735303849716,-1184.86,0.00010882,2]
[346814325,1735303849728,-500.0,0.00010882,2]
[346814326,1735303849741,-500.0,0.00010882,2]
[346814327,1735303849754,-3955.38,0.00010882,2]
[346814328,1735303849764,-2582.84,0.00010882,2]
[346814329,1735303849774,-4387.26,0.00010882,2]
[346814330,1735303849783,-2833.33,0.00010882,2]
[346814331,1735303849792,-3958.34,0.00010882,2]
[346814332,1735303849801,-2049.81,0.00010882,2]
[346814333,1735303849811,-3118.31,0.00010882,2]
[346814334,1735303849820,-5164.39,0.00010882,2]
[346814335,1735303849830,-6602.28,0.00010882,2]
[346814336,1735303849839,-6666.4,0.00010882,2]
[346814337,1735303849848,-63716.53,0.00010882,2]
[346814338,1735303849857,-479.01587159,0.00010885,2]
[346814339,1735303849866,-479.01587159,0.00010937,2]
[346814340,1735303849875,-479.01587159,0.00010989,2]
[346814341,1735303849884,-420.0,0.00010999,2]
[346814342,1735303849893,-448148.25440754,0.00011,2]
[346814343,1735303849902,-153.0,0.00011023,2]
[346814344,1735303849911,-153.0,0.00011023,2]
[346814345,1735303849921,-153.0,0.00011023,2]
[346814346,1735303849931,-153.0,0.00011023,2]
[346814347,1735303849940,-153.0,0.00011023,2]
[346814348,1735303849949,-153.0,0.00011023,2]
[346814349,1735303849958,-153.0,0.00011023,2]
[346814350,1735303849967,-153.0,0.00011023,2]
[346814351,1735303849978,-153.0,0.00011023,2]
[346814352,1735303849987,-153.0,0.00011023,2]
[346814353,1735303849999,-153.0,0.00011023,2]
[346814354,1735303850008,-153.0,0.00011023,2]
[346814355,1735303850018,-153.0,0.00011023,2]
[346814356,1735303850028,-153.0,0.00011023,2]
[346814357,1735303850037,-153.0,0.00011023,2]
[346814358,1735303850047,-153.0,0.00011023,2]
[346814359,1735303850057,-153.0,0.00011023,2]
[346814360,1735303850067,-153.0,0.00011023,2]
[346814361,1735303850077,-153.0,0.00011023,2]
[346814362,1735303850086,-153.0,0.00011023,2]
[346814363,1735303850096,-153.0,0.00011023,2]
[346814364,1735303850107,-153.0,0.00011023,2]
[346814365,1735303850116,-153.0,0.00011023,2]
[346814366,1735303850126,-153.0,0.00011023,2]
[346814367,1735303850139,-153.0,0.00011023,2]
[346814368,1735303850148,-153.0,0.00011023,2]
[346814369,1735303850157,-153.0,0.00011023,2]
[346814370,1735303850167,-153.0,0.00011023,2]
[346814371,1735303850178,-3834.933,0.00011025,2]
[346814372,1735303850188,-164.949,0.00011025,2]
[346814373,1735303850198,-479.01587159,0.0001104,2]
[346814374,1735303850208,-177.1280077,0.00011054,2]
[346814375,1735303850220,-198.35757975,0.00011054,2]
[346814376,1735303850230,-181.85959431,0.00011054,2]
[346814377,1735303850239,-209.33284852,0.00011054,2]
[346814378,1735303850251,-568.0,0.00011069,2]
[346814379,1735303850260,-479.01587159,0.00011092,2]
[346814380,1735303850270,-198.35757975,0.00011092,2]
[346814381,1735303850279,-65404.85852943,0.0001115,2]
[346814382,1735303850289,-916.61,0.00011152,2]
[346814383,1735303850299,-5620.28,0.00011152,2]
[346814384,1735303850308,-1314.75,0.00011152,2]
[346814385,1735303850318,-17543.3,0.00011152,2]
[346814386,1735303850328,-3942.46,0.00011152,2]
[346814387,1735303850338,-806.14,0.00011152,2]
[346814388,1735303850349,-2913.36,0.00011152,2]
[346814389,1735303850359,-7442.43,0.00011152,2]
[346814390,1735303850369,-911.17,0.00011152,2]
[346814391,1735303850379,-2351.25,0.00011152,2]
[346814392,1735303850389,-500.0,0.00011152,2]
[346814393,1735303850399,-500.0,0.00011152,2]
[346814394,1735303850408,-878.3,0.00011152,2]
[346814395,1735303850418,-1221.86,0.00011152,2]
[346814396,1735303850428,-2755.98,0.00011152,2]
[346814397,1735303850438,-2294.38,0.00011152,2]
[346814398,1735303850448,-4663.32,0.00011152,2]
[346814399,1735303850458,-2066.99,0.00011152,2]
[346814400,1735303850468,-2163.68,0.00011152,2]
[346814401,1735303850479,-1966.78,0.00011152,2]
[346814402,1735303850490,-6445.62,0.00011152,2]
[346814403,1735303850501,-853.62,0.00011153,2]
[346814404,1735303850511,-571.94,0.00011153,2]
[346814405,1735303850521,-947.94,0.00011153,2]
[346814406,1735303850532,-817.79,0.00011153,2]
[346814407,1735303850542,-500.0,0.00011153,2]
[346814408,1735303850552,-502.47079623,0.00011153,2]
[346814409,1735303850562,-500.0,0.00011153,2]
[346814410,1735303850572,-1635.83,0.00011153,2]
[346814411,1735303850582,-959.33,0.00011153,2]
[346814412,1735303850592,-618.07,0.00011153,2]
[346814413,1735303850602,-1243.04,0.00011153,2]
[346814414,1735303850612,-2716.8,0.00011153,2]
[346814415,1735303850622,-1762.24,0.00011153,2]
[346814416,1735303850632,-1702.86,0.00011153,2]
[346814417,1735303850642,-1669.33,0.00011153,2]
[346814418,1735303850651,-1844.6,0.00011153,2]
[346814419,1735303850661,-1310.96,0.00011153,2]
[346814420,1735303850671,-3922.86,0.00011153,2]
[346814421,1735303850681,-634.2,0.00011153,2]
[346814422,1735303850691,-1160.74,0.00011153,2]
[346814423,1735303850702,-500.0,0.00011153,2]
[346814424,1735303850712,-872.62,0.00011153,2]
[346814425,1735303850722,-500.0,0.00011153,2]
[346814426,1735303850732,-500.0,0.00011153,2]
[346814427,1735303850742,-1014.02,0.00011153,2]
[346814428,1735303850753,-500.0,0.00011153,2]
[346814429,1735303850763,-1596.1,0.00011153,2]
[346814430,1735303850774,-1677.03,0.00011153,2]
[346814431,1735303850784,-875.74,0.00011153,2]
[346814432,1735303850794,-6584.02,0.00011153,2]
[346814433,1735303850803,-1210.34,0.00011153,2]
[346814434,1735303850813,-834.03,0.00011153,2]
[346814435,1735303850822,-1892.82,0.00011153,2]
[346814436,1735303850832,-2042.39,0.00011153,2]
[346814437,1735303850841,-692.08,0.00011153,2]
[346814438,1735303850851,-3789.38,0.00011153,2]
[346814439,1735303850860,-500.0,0.00011153,2]
[346814440,1735303850870,-1763.09,0.00011153,2]
[346814441,1735303850879,-895.8,0.00011153,2]
[346814442,1735303850889,-508.41,0.00011153,2]
[346814443,1735303850899,-615.38,0.00011153,2]
[346814444,1735303850909,-3733.6,0.00011153,2]
[346814445,1735303850918,-742.05,0.00011153,2]
[346814446,1735303850928,-561.26,0.00011153,2]
[346814447,1735303850938,-500.0,0.00011153,2]
[346814448,1735303850947,-1410.04,0.00011153,2]
[346814449,1735303850957,-543.53,0.00011153,2]
[346814450,1735303850968,-1477.69,0.00011153,2]
[346814451,1735303850977,-500.0,0.00011153,2]
[346814452,1735303850987,-1121.63,0.00011153,2]
[346814453,1735303850998,-6706.49,0.00011153,2]
[346814454,1735303851007,-500.0,0.00011153,2]
[346814455,1735303851017,-2473.24,0.00011153,2]
[346814456,1735303851027,-1096.17,0.00011153,2]
[346814457,1735303851036,-2422.07,0.00011153,2]
[346814458,1735303851046,-923.1,0.00011153,2]
[346814459,1735303851056,-4360.99,0.00011153,2]
[346814460,1735303851066,-1354.98,0.00011153,2]
[346814461,1735303851075,-500.0,0.00011153,2]
[346814462,1735303851085,-686.44,0.00011153,2]
[346814463,1735303851095,-1476.64,0.00011153,2]
[346814464,1735303851104,-672.58,0.00011153,2]
[346814465,1735303851114,-500.0,0.00011153,2]
[346814466,1735303851124,-500.0,0.00011153,2]
[346814467,1735303851136,-500.0,0.00011153,2]
[346814468,1735303851145,-631.59,0.00011153,2]
[346814469,1735303851155,-1053.3,0.00011153,2]
[346814470,1735303851164,-2178.59,0.00011153,2]
[346814471,1735303851175,-2836.05,0.00011153,2]
[346814472,1735303851184,-2828.100349,0.00011153,2]
[346814473,1735303851194,-500.0,0.00011153,2]
[346814474,1735303851203,-994.11,0.00011153,2]
[346814475,1735303851214,-2774.006826,0.00011153,2]
[346814476,1735303851224,-1007.36,0.00011153,2]
[346814477,1735303851234,-687.99,0.00011153,2]
[346814478,1735303851243,-530.61,0.00011153,2]
[346814479,1735303851254,-2642.03,0.00011153,2]
[346814480,1735303851264,-500.0,0.00011153,2]
[346814481,1735303851274,-938.7,0.00011153,2]
[346814482,1735303851283,-500.0,0.00011153,2]
[346814483,1735303851293,-222.87405495,0.00011153,2]
[346814484,1735303851302,-1504.7,0.00011153,2]
[346814485,1735303851312,-1343.04,0.00011153,2]
[346814486,1735303851321,-500.0,0.00011153,2]
[346814487,1735303851331,-869.86,0.00011153,2]
[346814488,1735303851341,-500.0,0.00011153,2]
[346814489,1735303851351,-1373.29,0.00011153,2]
[346814490,1735303851360,-20359.91,0.00011153,2]
[346814491,1735303851370,-500.0,0.00011153,2]
[346814492,1735303851380,-1740.19,0.00011153,2]
[346814493,1735303851389,-500.0,0.00011153,2]
[346814494,1735303851399,-795.05,0.00011153,2]
[346814495,1735303851409,-895.07,0.00011153,2]
[346814496,1735303851419,-838.98,0.00011153,2]
[346814497,1735303851428,-500.0,0.00011153,2]
[346814498,1735303851438,-808.37,0.00011153,2]
[346814499,1735303851448,-683.7,0.00011153,2]
[346814500,1735303851457,-500.0,0.00011153,2]
[346814501,1735303851468,-1386.77,0.00011153,2]
[346814502,1735303851477,-884.46,0.00011153,2]
[346814503,1735303851487,-2665.71,0.00011153,2]
[346814504,1735303851498,-1489.57,0.00011153,2]
[346814505,1735303851508,-1158.66,0.00011153,2]
[346814506,1735303851518,-1059.27,0.00011153,2]
[346814507,1735303851528,-500.0,0.00011153,2]
[346814508,1735303851537,-500.0,0.00011153,2]
[346814509,1735303851547,-2542.83959,0.00011153,2]
[346814510,1735303851557,-501.4,0.00011153,2]
[346814511,1735303851567,-2528.94,0.00011153,2]
[346814512,1735303851577,-2869.54,0.00011153,2]
[346814513,1735303851586,-1317.1,0.00011153,2]
[346814514,1735303851596,-511.48211006,0.00011153,2]
[346814515,1735303851605,-486.19859187,0.00011153,2]
[346814516,1735303851615,-500.0,0.00011153,2]
[346814517,1735303851625,-500.0,0.00011153,2]
[346814518,1735303851635,-627.38,0.00011153,2]
[346814519,1735303851646,-1851.38,0.00011153,2]
[346814520,1735303851655,-500.0,0.00011153,2]
[346814521,1735303851665,-625.98,0.00011153,2]
[346814522,1735303851676,-1223.46,0.00011153,2]
[346814523,1735303851687,-3822.1,0.00011153,2]
[346814524,1735303851697,-1235.64,0.00011153,2]
[346814525,1735303851706,-500.0,0.00011153,2]
[346814526,1735303851716,-500.0,0.00011153,2]
[346814527,1735303851727,-500.0,0.00011153,2]
[346814528,1735303851737,-500.0,0.00011153,2]
[346814529,1735303851749,-1343.8,0.00011153,2]
[346814530,1735303851759,-3429.86,0.00011153,2]
[346814531,1735303851768,-1802.67,0.00011153,2]
[346814532,1735303851779,-500.0,0.00011153,2]
[346814533,1735303851790,-14478.94,0.00011153,2]
[346814534,1735303851800,-500.0,0.00011153,2]
[346814535,1735303851811,-2180.66,0.00011153,2]
[346814536,1735303851820,-762.95,0.00011153,2]
[346814537,1735303851829,-552.29,0.00011153,2]
[346814538,1735303851839,-5555.3,0.00011153,2]
[346814539,1735303851849,-501.73409939,0.00011153,2]
[346814540,1735303851859,-600.49,0.00011153,2]
[346814541,1735303851869,-10401.69,0.00011153,2]
[346814542,1735303851880,-2018.49,0.00011153,2]
[346814543,1735303851889,-500.0,0.00011153,2]
[346814544,1735303851899,-500.0,0.00011153,2]
[346814545,1735303851909,-1477.11,0.00011153,2]
[346814546,1735303851919,-500.0,0.00011153,2]
[346814547,1735303851928,-500.0,0.00011153,2]
[346814548,1735303851938,-2470.18,0.00011153,2]
[346814549,1735303851947,-2090.28,0.00011153,2]
[346814550,1735303851957,-500.0,0.00011153,2]
[346814551,1735303851968,-500.0,0.00011153,2]
[346814552,1735303851977,-9888.7,0.00011153,2]
[346814553,1735303851987,-500.0,0.00011153,2]
[346814554,1735303851997,-2131.0,0.00011153,2]
[346814555,1735303852006,-500.0,0.00011153,2]
[346814556,1735303852016,-1080.98,0.00011153,2]
[346814557,1735303852027,-500.0,0.00011153,2]
[346814558,1735303852037,-3502.48,0.00011153,2]
[346814559,1735303852049,-1946.41,0.00011153,2]
[346814560,1735303852058,-2014.98,0.00011153,2]
[346814561,1735303852068,-731.67,0.00011153,2]
[346814562,1735303852078,-1008.48,0.00011153,2]
[346814563,1735303852332,-500.0,0.00011153,2]
[346814564,1735303852343,-778.12,0.00011153,2]
[346814565,1735303852352,-1335.06,0.00011153,2]
[346814566,1735303852362,-1219.81,0.00011153,2]
[346814567,1735303852371,-6613.63,0.00011153,2]